fUST/lending_fUST_20240424
["ID","MTS","AMOUNT","RATE_DAILY","PERIOD"]
[323369615,1713935440268,-500.0,0.00016986,2]
[323369616,1713935440278,-745.7,0.00016986,2]
[323369619,1713935440288,-500.0,0.00016986,2]
[323369620,1713935440298,-1046.94,0.00016986,2]
[323369623,1713935440308,-500.0,0.00016986,2]
[323369625,1713935440318,-500.0,0.00016986,2]
[323369627,1713935440328,-12331.76,0.00016986,2]
[323369629,1713935440337,-883.27,0.00016986,2]
[323369631,1713935440346,-500.0,0.00016986,2]
[323369633,1713935440355,-500.0,0.00016986,2]
[323369635,1713935440365,-20197.27,0.00016986,2]
[323369637,1713935440374,-153.43131253,0.00017087,2]
[323369639,1713935440383,-587.0,0.000172,2]
[323369640,1713935440392,-430.06913587,0.0001726,2]
[323369643,1713935440401,-500.0,0.0001726,2]
[323369645,1713935440412,-579.63,0.0001726,2]
[323369647,1713935440421,-500.0,0.0001726,2]
[323369649,1713935440430,-940.83,0.0001726,2]
[323369651,1713935440439,-682.95,0.0001726,2]
[323369653,1713935440448,-500.0,0.0001726,2]
[323369655,1713935440457,-501.01726157,0.0001726,2]
[323369657,1713935440467,-500.0,0.0001726,2]
[323369659,1713935440476,-500.0,0.0001726,2]
[323369661,1713935440485,-500.0,0.0001726,2]
[323369663,1713935440494,-500.0,0.0001726,2]
[323369665,1713935440504,-786.47,0.0001726,2]
[323369666,1713935440512,-500.0,0.0001726,2]
[323369669,1713935440522,-500.0,0.0001726,2]
[323369670,1713935440531,-500.0,0.0001726,2]
[323369673,1713935440541,-500.0,0.0001726,2]
[323369674,1713935440550,-2445.93,0.0001726,2]
[323369676,1713935440560,-1110.13,0.0001726,2]
[323369678,1713935440569,-500.0,0.0001726,2]
[323369681,1713935440579,-500.0,0.0001726,2]
[323369683,1713935440588,-825.43,0.0001726,2]
[323369684,1713935440597,-567.11,0.0001726,2]
[323369686,1713935440606,-500.0,0.0001726,2]
[323369688,1713935440615,-306.64562367,0.0001726,2]
[323369690,1713935440624,-500.0,0.0001726,2]
[323369692,1713935440634,-500.0,0.0001726,2]
[323369694,1713935440643,-569.56,0.0001726,2]
[323369696,1713935440653,-500.0,0.0001726,2]
[323369698,1713935440662,-500.0,0.0001726,2]
[323369700,1713935440671,-1058.588626,0.0001726,2]
[323369701,1713935440681,-679.387019,0.0001726,2]
[323369702,1713935440690,-1058.588626,0.0001726,2]
[323369703,1713935440700,-679.387019,0.0001726,2]
[323369704,1713935440708,-679.387019,0.0001726,2]
[323369705,1713935440717,-1058.588626,0.0001726,2]
[323369706,1713935440727,-679.387019,0.0001726,2]
[323369707,1713935440736,-1058.588626,0.0001726,2]
[323369709,1713935440745,-501.00483277,0.0001726,2]
[323369710,1713935440754,-500.0,0.0001726,2]
[323369711,1713935440763,-151.0,0.0001726,2]
[323369712,1713935440772,-151.0,0.0001726,2]
[323369713,1713935440781,-1808.61,0.0001726,2]
[323369714,1713935440791,-1616.98,0.0001726,2]
[323369715,1713935440800,-395.34378577,0.0001726,2]
[323369716,1713935440809,-500.0,0.0001726,2]
[323369717,1713935440819,-500.0,0.0001726,2]
[323369718,1713935440828,-500.0,0.0001726,2]
[323369719,1713935440837,-151.0,0.0001726,2]
[323369720,1713935440847,-158.3433,0.0001726,2]
[323369721,1713935440856,-500.0,0.0001726,2]
[323369722,1713935440866,-500.0,0.0001726,2]
[323369723,1713935440875,-500.0,0.0001726,2]
[323369724,1713935440884,-1123.08,0.0001726,2]
[323369725,1713935440893,-2249.05,0.0001726,2]
[323369726,1713935440904,-1327.5,0.0001726,2]
[323369727,1713935440912,-495.34833895,0.0001726,2]
[323369728,1713935440922,-1674.12,0.0001726,2]
[323369729,1713935440930,-2056.7,0.0001726,2]
[323369730,1713935440939,-151.0,0.0001726,2]
[323369731,1713935440949,-151.0,0.0001726,2]
[323369732,1713935440958,-151.0,0.0001726,2]
[323369733,1713935440968,-151.0,0.0001726,2]
[323369734,1713935440978,-151.0,0.0001726,2]
[323369735,1713935440987,-151.0,0.0001726,2]
[323369736,1713935440996,-500.0,0.0001726,2]
[323369737,1713935441005,-1624.86,0.0001726,2]
[323369738,1713935441015,-8519.54,0.0001726,2]
[323369739,1713935441024,-500.0,0.0001726,2]
[323369740,1713935441034,-810.89,0.0001726,2]
[323369741,1713935441042,-1248.8,0.0001726,2]
[323369742,1713935441051,-1015.49,0.0001726,2]
[323369743,1713935441060,-1101.25,0.0001726,2]
[323369744,1713935441069,-759.56,0.0001726,2]
[323369745,1713935441078,-500.0,0.0001726,2]
[323369746,1713935441087,-221.89226198,0.0001726,2]
[323369747,1713935441096,-500.0,0.0001726,2]
[323369748,1713935441105,-500.0,0.0001726,2]
[323369749,1713935441114,-6087.38,0.0001726,2]
[323369750,1713935441123,-500.0,0.0001726,2]
[323369751,1713935441132,-866.2,0.0001726,2]
[323369752,1713935441141,-1123.53,0.0001726,2]
[323369753,1713935441151,-6024.2,0.0001726,2]
[323369754,1713935441160,-500.0,0.0001726,2]
[323369755,1713935441170,-504.45,0.0001726,2]
[323369756,1713935441179,-3154.71,0.0001726,2]
[323369757,1713935441189,-500.0,0.0001726,2]
[323369758,1713935441199,-4501.59,0.0001726,2]
[323369759,1713935441210,-500.0,0.0001726,2]
[323369760,1713935441222,-500.0,0.0001726,2]
[323369761,1713935441231,-1336.09,0.0001726,2]
[323369762,1713935441240,-500.0,0.0001726,2]
[323369763,1713935441250,-560.85,0.0001726,2]
[323369764,1713935441260,-798.31,0.0001726,2]
[323369765,1713935441269,-608.62,0.0001726,2]
[323369766,1713935441279,-1237.7,0.0001726,2]
[323369767,1713935441288,-1074.61,0.0001726,2]
[323369768,1713935441301,-500.0,0.0001726,2]
[323369769,1713935441311,-2094.64,0.0001726,2]
[323369770,1713935441320,-588.55,0.0001726,2]
[323369771,1713935441449,-699.38,0.0001726,2]
[323369772,1713935441479,-1620.5,0.0001726,2]
[323369773,1713935441489,-345.29313716,0.0001726,2]
[323369774,1713935441588,-457.51686284,0.0001726,2]
[323369775,1713935441597,-500.0,0.0001726,2]
[323369776,1713935441607,-656.61,0.0001726,2]
[323369777,1713935441616,-576.65,0.0001726,2]
[323369778,1713935441625,-500.0,0.0001726,2]
[323369779,1713935441634,-500.0,0.0001726,2]
[323369780,1713935441643,-14169.9,0.0001726,2]
[323369781,1713935441652,-2161.53,0.0001726,2]
[323369782,1713935441661,-575.25,0.0001726,2]
[323369783,1713935441671,-500.0,0.0001726,2]
[323369784,1713935441682,-556.25,0.0001726,2]
[323369785,1713935441691,-500.0,0.0001726,2]
[323369786,1713935441701,-745.7,0.0001726,2]
[323369787,1713935441712,-500.0,0.0001726,2]
[323369788,1713935441721,-1046.94,0.0001726,2]
[323369789,1713935441731,-500.0,0.0001726,2]
[323369790,1713935441740,-12331.76,0.0001726,2]
[323369791,1713935441751,-883.27,0.0001726,2]
[323369792,1713935441760,-500.0,0.0001726,2]
[323369793,1713935441769,-500.0,0.0001726,2]
[323369794,1713935441779,-20197.27,0.0001726,2]
[323369795,1713935441790,-201.0925002,0.00017307,2]
[323369796,1713935441801,-153.0,0.00017479,2]
[323369797,1713935441811,-620.00044738,0.00017534,2]
[323369798,1713935441820,-500.0,0.00017534,2]
[323369799,1713935441830,-500.0,0.00017534,2]
[323369800,1713935441839,-923.86,0.00017534,2]
[323369801,1713935441849,-1694.19,0.00017534,2]
[323369802,1713935441859,-500.0,0.00017534,2]
[323369803,1713935441870,-621.02,0.00017534,2]
[323369804,1713935441880,-589.94,0.00017534,2]
[323369805,1713935441890,-500.0,0.00017534,2]
[323369806,1713935441900,-500.0,0.00017534,2]
[323369807,1713935441911,-500.0,0.00017534,2]
[323369808,1713935441921,-500.0,0.00017534,2]
[323369809,1713935441930,-500.0,0.00017534,2]
[323369810,1713935441940,-500.0,0.00017534,2]
[323369811,1713935441949,-500.0,0.00017534,2]
[323369812,1713935441961,-596.73,0.00017534,2]
[323369813,1713935441971,-500.0,0.00017534,2]
[323369814,1713935441981,-500.0,0.00017534,2]
[323369815,1713935441990,-500.0,0.00017534,2]
[323369816,1713935442000,-500.0,0.00017534,2]
[323369817,1713935442011,-500.0,0.00017534,2]
[323369818,1713935442022,-500.0,0.00017534,2]
[323369819,1713935442032,-500.0,0.00017534,2]
[323369820,1713935442042,-500.0,0.00017534,2]
[323369821,1713935442053,-537.934341,0.00017534,2]
[323369822,1713935442064,-537.934341,0.00017534,2]
[323369823,1713935442074,-500.0,0.00017534,2]
[323369824,1713935442084,-537.934341,0.00017534,2]
[323369825,1713935442094,-537.934341,0.00017534,2]
[323369826,1713935442104,-500.0,0.00017534,2]
[323369827,1713935442113,-500.0,0.00017534,2]
[323369828,1713935442124,-3172.22,0.00017534,2]
[323369829,1713935442133,-1036.52,0.00017534,2]
[323369830,1713935442144,-622.48336572,0.00017534,2]
[323369831,1713935442153,-671.94,0.00017534,2]
[323369832,1713935442163,-500.0,0.00017534,2]
[323369833,1713935442172,-751.87,0.00017534,2]
[323369834,1713935442181,-1218.58,0.00017534,2]
[323369835,1713935442191,-525.05,0.00017534,2]
[323369836,1713935442201,-500.0,0.00017534,2]
[323369837,1713935442211,-501.98108186,0.00017534,2]
[323369838,1713935442223,-166.87951574,0.00017534,2]
[323369839,1713935442233,-500.0,0.00017534,2]
[323369840,1713935442243,-500.0,0.00017534,2]
[323369841,1713935442252,-500.0,0.00017534,2]
[323369842,1713935442262,-1479.58,0.00017534,2]
[323369843,1713935442271,-1952.31,0.00017534,2]
[323369844,1713935442281,-1102.42,0.00017534,2]
[323369845,1713935442290,-503.21389459,0.00017534,2]
[323369846,1713935442301,-500.0,0.00017534,2]
[323369847,1713935442312,-500.0,0.00017534,2]
[323369848,1713935442322,-510.84,0.00017534,2]
[323369849,1713935442332,-881.19,0.00017534,2]
[323369850,1713935442340,-500.0,0.00017534,2]
[323369851,1713935442350,-500.0,0.00017534,2]
[323369852,1713935442360,-500.0,0.00017534,2]
[323369853,1713935442370,-619.616954,0.00017534,2]
[323369854,1713935442379,-420.85507138,0.00017534,2]
[323369855,1713935442388,-500.0,0.00017534,2]
[323369856,1713935442398,-911.45,0.00017534,2]
[323369857,1713935442407,-500.0,0.00017534,2]
[323369858,1713935442417,-883.14,0.00017534,2]
[323369859,1713935442426,-605.94,0.00017534,2]
[323369860,1713935442435,-500.0,0.00017534,2]
[323369861,1713935442445,-296.64409495,0.00017534,2]
[323369862,1713935442455,-500.0,0.00017534,2]
[323369863,1713935442466,-1958.73,0.00017534,2]
[323369864,1713935442475,-500.0,0.00017534,2]
[323369865,1713935442485,-494.9160152,0.00017534,2]
[323369866,1713935442494,-553.93,0.00017534,2]
[323369867,1713935442503,-500.0,0.00017534,2]
[323369868,1713935442513,-500.0,0.00017534,2]
[323369869,1713935442522,-500.0,0.00017534,2]
[323369870,1713935442532,-586.01,0.00017534,2]
[323369871,1713935442542,-1763.73,0.00017534,2]
[323369872,1713935442552,-500.0,0.00017534,2]
[323369873,1713935442561,-500.0,0.00017534,2]
[323369874,1713935442570,-500.0,0.00017534,2]
[323369876,1713935442579,-1561.93,0.00017534,2]
[323369878,1713935442588,-500.0,0.00017534,2]
[323369879,1713935442598,-500.0,0.00017534,2]
[323369880,1713935442607,-500.0,0.00017534,2]
[323369881,1713935442616,-500.0,0.00017534,2]
[323369882,1713935442626,-576.29,0.00017534,2]
[323369883,1713935442635,-500.0,0.00017534,2]
[323369884,1713935442645,-500.0,0.00017534,2]
[323369885,1713935442654,-32.16648441,0.00017534,2]
[323369901,1713935442799,-467.83351559,0.00017534,2]
[323369904,1713935442809,-500.0,0.00017534,2]
[323369907,1713935442818,-987.19,0.00017534,2]
[323369909,1713935442828,-561.7,0.00017534,2]
[323369911,1713935442837,-500.0,0.00017534,2]
[323369913,1713935442846,-959.71,0.00017534,2]
[323369916,1713935442854,-500.0,0.00017534,2]
[323369918,1713935442863,-500.0,0.00017534,2]
[323369920,1713935442872,-500.0,0.00017534,2]
[323369922,1713935442881,-500.0,0.00017534,2]
[323369924,1713935442891,-579.63,0.00017534,2]
[323369926,1713935442900,-500.0,0.00017534,2]
[323369929,1713935442909,-940.83,0.00017534,2]
[323369931,1713935442919,-682.95,0.00017534,2]
[323369934,1713935442928,-500.0,0.00017534,2]
[323369936,1713935442937,-500.0,0.00017534,2]
[323369938,1713935442946,-500.0,0.00017534,2]
[323369939,1713935442955,-500.0,0.00017534,2]
[323369940,1713935442965,-456.57219494,0.00017534,2]
[323369941,1713935442974,-786.47,0.00017534,2]
[323369942,1713935442984,-280.5249904,0.00017534,2]
[323369943,1713935442993,-500.0,0.00017534,2]
[323369945,1713935443003,-500.0,0.00017534,2]
[323369947,1713935443011,-500.0,0.00017534,2]
[323369949,1713935443021,-2445.93,0.00017534,2]
[323369951,1713935443030,-1110.13,0.00017534,2]
[323369953,1713935443039,-500.0,0.00017534,2]
[323369955,1713935443049,-500.0,0.00017534,2]
[323369957,1713935443059,-825.43,0.00017534,2]
[323369959,1713935443068,-567.11,0.00017534,2]
[323369961,1713935443079,-500.0,0.00017534,2]
[323369963,1713935443088,-500.0,0.00017534,2]
[323369965,1713935443097,-500.0,0.00017534,2]
[323369967,1713935443107,-569.56,0.00017534,2]
[323369969,1713935443117,-500.0,0.00017534,2]
[323369971,1713935443126,-500.0,0.00017534,2]
[323369973,1713935443135,-1058.588626,0.00017534,2]
[323369975,1713935443145,-679.387019,0.00017534,2]
[323369977,1713935443154,-1058.588626,0.00017534,2]
[323369978,1713935443164,-679.387019,0.00017534,2]
[323369980,1713935443174,-1058.588626,0.00017534,2]
[323369982,1713935443183,-679.387019,0.00017534,2]
[323369984,1713935443193,-679.387019,0.00017534,2]
[323369986,1713935443202,-1058.588626,0.00017534,2]
[323369988,1713935443212,-679.387019,0.00017534,2]
[323369990,1713935443224,-679.387019,0.00017534,2]
[323369993,1713935443233,-500.0,0.00017534,2]
[323369995,1713935443242,-1058.588626,0.00017534,2]
[323369997,1713935443251,-1058.588626,0.00017534,2]
[323369999,1713935443261,-294.29235197,0.00017534,2]
[323370001,1713935443270,-1808.61,0.00017534,2]
[323370003,1713935443279,-1616.98,0.00017534,2]
[323370005,1713935443288,-500.0,0.00017534,2]
[323370007,1713935443298,-500.0,0.00017534,2]
[323370009,1713935443308,-500.0,0.00017534,2]
[323370011,1713935443317,-500.0,0.00017534,2]
[323370013,1713935443327,-500.0,0.00017534,2]
[323370015,1713935443336,-500.0,0.00017534,2]
[323370018,1713935443347,-1123.08,0.00017534,2]
[323370021,1713935443356,-2249.05,0.00017534,2]
[323370024,1713935443365,-1327.5,0.00017534,2]
[323370027,1713935443375,-1674.12,0.00017534,2]
[323370030,1713935443385,-2056.7,0.00017534,2]
[323370033,1713935443394,-151.0,0.00017534,2]
[323370036,1713935443403,-151.0,0.00017534,2]
[323370039,1713935443412,-151.0,0.00017534,2]
[323370042,1713935443421,-151.0,0.00017534,2]
[323370045,1713935443430,-151.0,0.00017534,2]
[323370048,1713935443439,-151.0,0.00017534,2]
[323370050,1713935443449,-151.0,0.00017534,2]
[323370053,1713935443458,-151.0,0.00017534,2]
[323370055,1713935443468,-151.0,0.00017534,2]
[323370059,1713935443477,-500.0,0.00017534,2]
[323370061,1713935443486,-1624.86,0.00017534,2]
[323370064,1713935443495,-8519.54,0.00017534,2]
[323370067,1713935443504,-500.0,0.00017534,2]
[323370071,1713935443514,-810.89,0.00017534,2]
[323370075,1713935443524,-1248.8,0.00017534,2]
[323370079,1713935443533,-1015.49,0.00017534,2]
[323370082,1713935443542,-1101.25,0.00017534,2]
[323370085,1713935443553,-759.56,0.00017534,2]
[323370088,1713935443564,-500.0,0.00017534,2]
[323370091,1713935443573,-500.0,0.00017534,2]
[323370095,1713935443583,-500.0,0.00017534,2]
[323370098,1713935443592,-6087.38,0.00017534,2]
[323370102,1713935443602,-500.0,0.00017534,2]
[323370105,1713935443612,-866.2,0.00017534,2]
[323370109,1713935443622,-1123.53,0.00017534,2]
[323370113,1713935443632,-6024.2,0.00017534,2]
[323370116,1713935443641,-500.0,0.00017534,2]
[323370119,1713935443653,-504.45,0.00017534,2]
[323370122,1713935443664,-3154.71,0.00017534,2]
[323370125,1713935443673,-500.0,0.00017534,2]
[323370128,1713935443682,-4501.59,0.00017534,2]
[323370131,1713935443691,-500.0,0.00017534,2]
[323370134,1713935443700,-500.0,0.00017534,2]
[323370137,1713935443711,-1336.09,0.00017534,2]
[323370140,1713935443720,-500.0,0.00017534,2]
[323370142,1713935443728,-560.85,0.00017534,2]
[323370145,1713935443738,-798.31,0.00017534,2]
[323370148,1713935443746,-608.62,0.00017534,2]
[323370151,1713935443755,-1237.7,0.00017534,2]
[323370154,1713935443764,-1074.61,0.00017534,2]
[323370157,1713935443774,-500.0,0.00017534,2]
[323370160,1713935443783,-2094.64,0.00017534,2]
[323370163,1713935443792,-588.55,0.00017534,2]
[323370166,1713935443801,-699.38,0.00017534,2]
[323370169,1713935443810,-1620.5,0.00017534,2]
[323370172,1713935443819,-802.81,0.00017534,2]
[323370175,1713935443827,-500.0,0.00017534,2]
[323370177,1713935443836,-656.61,0.00017534,2]
[323370180,1713935443847,-576.65,0.00017534,2]
[323370182,1713935443857,-503.08322301,0.00017534,2]
[323370184,1713935443866,-500.0,0.00017534,2]
[323370185,1713935443875,-14169.9,0.00017534,2]
[323370187,1713935443885,-2161.53,0.00017534,2]
[323370190,1713935443895,-575.25,0.00017534,2]
[323370191,1713935443904,-500.0,0.00017534,2]
[323370193,1713935443913,-556.25,0.00017534,2]
[323370195,1713935443922,-745.7,0.00017534,2]
[323370197,1713935443931,-500.0,0.00017534,2]
[323370199,1713935443940,-489.59870107,0.00017534,2]
[323370202,1713935443951,-1046.94,0.00017534,2]
[323370203,1713935443963,-500.0,0.00017534,2]
[323370206,1713935443973,-12331.76,0.00017534,2]
[323370208,1713935443983,-883.27,0.00017534,2]
[323370210,1713935443992,-500.0,0.00017534,2]
[323370212,1713935444002,-500.0,0.00017534,2]
[323370213,1713935444011,-20197.27,0.00017534,2]
[323370215,1713935444020,-500.0,0.00017808,2]
[323370216,1713935444029,-500.0,0.00017808,2]
[323370217,1713935444038,-923.86,0.00017808,2]
[323370218,1713935444047,-1694.19,0.00017808,2]
[323370219,1713935444057,-500.0,0.00017808,2]
[323370220,1713935444066,-621.02,0.00017808,2]
[323370221,1713935444075,-589.94,0.00017808,2]
[323370222,1713935444084,-500.0,0.00017808,2]
[323370223,1713935444093,-500.0,0.00017808,2]
[323370224,1713935444102,-500.0,0.00017808,2]
[323370225,1713935444111,-500.0,0.00017808,2]
[323370226,1713935444121,-500.0,0.00017808,2]
[323370227,1713935444131,-506.30274014,0.00017808,2]
[323370228,1713935444140,-500.0,0.00017808,2]
[323370229,1713935444149,-596.73,0.00017808,2]
[323370230,1713935444157,-500.0,0.00017808,2]
[323370231,1713935444167,-500.0,0.00017808,2]
[323370232,1713935444176,-500.0,0.00017808,2]
[323370233,1713935444185,-332.02169275,0.00017808,2]
[323370234,1713935444194,-500.0,0.00017808,2]
[323370235,1713935444203,-500.0,0.00017808,2]
[323370236,1713935444214,-212.507581,0.00017808,2]
[323370237,1713935444227,-500.0,0.00017808,2]
[323370238,1713935444237,-537.934341,0.00017808,2]
[323370239,1713935444245,-500.0,0.00017808,2]
[323370240,1713935444254,-537.934336,0.00017808,2]
[323370241,1713935444263,-500.0,0.00017808,2]
[323370243,1713935444273,-629.8978296,0.00017808,2]
[323370244,1713935444282,-3172.22,0.00017808,2]
[323370246,1713935444291,-1036.52,0.00017808,2]
[323370248,1713935444301,-671.94,0.00017808,2]
[323370250,1713935444310,-500.0,0.00017808,2]
[323370252,1713935444319,-751.87,0.00017808,2]
[323370254,1713935444328,-1218.58,0.00017808,2]
[323370257,1713935444338,-525.05,0.00017808,2]
[323370258,1713935444348,-500.0,0.00017808,2]
[323370260,1713935444358,-500.0,0.00017808,2]
[323370278,1713935444510,-500.0,0.00017808,2]
[323370280,1713935444520,-500.0,0.00017808,2]
[323370282,1713935444530,-1479.58,0.00017808,2]
[323370284,1713935444539,-1952.31,0.00017808,2]
[323370286,1713935444548,-1102.42,0.00017808,2]
[323370287,1713935444558,-500.0,0.00017808,2]
[323370288,1713935444567,-500.0,0.00017808,2]
[323370289,1713935444576,-510.84,0.00017808,2]
[323370290,1713935444585,-881.19,0.00017808,2]
[323370291,1713935444594,-502.3071594,0.00017808,2]
[323370292,1713935444604,-500.0,0.00017808,2]
[323370293,1713935444613,-500.0,0.00017808,2]
[323370294,1713935444622,-500.0,0.00017808,2]
[323370295,1713935444632,-911.45,0.00017808,2]
[323370296,1713935444641,-648.85923183,0.00017808,2]
[323370297,1713935444650,-883.14,0.00017808,2]
[323370298,1713935444659,-605.94,0.00017808,2]
[323370299,1713935444668,-500.0,0.00017808,2]
[323370300,1713935444677,-500.0,0.00017808,2]
[323370301,1713935444687,-1958.73,0.00017808,2]
[323370302,1713935444696,-500.0,0.00017808,2]
[323370303,1713935444706,-553.93,0.00017808,2]
[323370304,1713935444718,-500.0,0.00017808,2]
[323370305,1713935444728,-500.0,0.00017808,2]
[323370306,1713935444736,-500.0,0.00017808,2]
[323370307,1713935444745,-586.01,0.00017808,2]
[323370308,1713935444755,-1763.73,0.00017808,2]
[323370309,1713935444765,-500.0,0.00017808,2]
[323370310,1713935444774,-500.0,0.00017808,2]
[323370311,1713935444783,-500.0,0.00017808,2]
[323370312,1713935444792,-1561.93,0.00017808,2]
[323370313,1713935444802,-500.0,0.00017808,2]
[323370314,1713935444811,-455.71148029,0.00017808,2]
[323370315,1713935444820,-500.0,0.00017808,2]
[323370316,1713935444829,-500.0,0.00017808,2]
[323370317,1713935444838,-576.29,0.00017808,2]
[323370318,1713935444847,-500.0,0.00017808,2]
[323370319,1713935444856,-500.0,0.00017808,2]
[323370320,1713935444866,-500.0,0.00017808,2]
[323370321,1713935444875,-500.0,0.00017808,2]
[323370322,1713935444884,-987.19,0.00017808,2]
[323370323,1713935444893,-561.7,0.00017808,2]
[323370324,1713935444902,-500.0,0.00017808,2]
[323370325,1713935444911,-959.71,0.00017808,2]
[323370326,1713935444921,-500.0,0.00017808,2]
[323370327,1713935444930,-500.0,0.00017808,2]
[323370328,1713935444939,-500.0,0.00017808,2]
[323370329,1713935444948,-500.0,0.00017808,2]
[323370330,1713935444957,-579.63,0.00017808,2]
[323370331,1713935444969,-513.89145107,0.00017808,2]
[323370332,1713935444978,-940.83,0.00017808,2]
[323370333,1713935444987,-682.95,0.00017808,2]
[323370334,1713935444996,-500.0,0.00017808,2]
[323370335,1713935445006,-500.0,0.00017808,2]
[323370336,1713935445015,-500.0,0.00017808,2]
[323370337,1713935445025,-500.0,0.00017808,2]
[323370338,1713935445034,-786.47,0.00017808,2]
[323370339,1713935445044,-500.0,0.00017808,2]
[323370340,1713935445054,-500.0,0.00017808,2]
[323370341,1713935445063,-508.27980213,0.00017808,2]
[323370342,1713935445072,-2445.93,0.00017808,2]
[323370343,1713935445081,-1110.13,0.00017808,2]
[323370344,1713935445090,-500.0,0.00017808,2]
[323370345,1713935445100,-500.0,0.00017808,2]
[323370346,1713935445110,-825.43,0.00017808,2]
[323370347,1713935445120,-567.11,0.00017808,2]
[323370348,1713935445129,-500.0,0.00017808,2]
[323370349,1713935445138,-500.0,0.00017808,2]
[323370350,1713935445147,-500.0,0.00017808,2]
[323370351,1713935445156,-569.56,0.00017808,2]
[323370352,1713935445165,-500.0,0.00017808,2]
[323370353,1713935445174,-500.0,0.00017808,2]
[323370354,1713935445183,-1058.588626,0.00017808,2]
[323370355,1713935445192,-517.39789729,0.00017808,2]
[323370356,1713935445201,-1058.588635,0.00017808,2]
[323370357,1713935445212,-1808.61,0.00017808,2]
[323370358,1713935445225,-1616.98,0.00017808,2]
[323370359,1713935445235,-500.0,0.00017808,2]
[323370360,1713935445244,-500.0,0.00017808,2]
[323370361,1713935445253,-500.0,0.00017808,2]
[323370362,1713935445266,-500.0,0.00017808,2]
[323370363,1713935445275,-500.0,0.00017808,2]
[323370364,1713935445285,-500.0,0.00017808,2]
[323370365,1713935445294,-1123.08,0.00017808,2]
[323370366,1713935445304,-2249.05,0.00017808,2]
[323370367,1713935445314,-1327.5,0.00017808,2]
[323370368,1713935445323,-1674.12,0.00017808,2]
[323370369,1713935445332,-2056.7,0.00017808,2]
[323370370,1713935445341,-262.708337,0.00017808,2]
[323370371,1713935445350,-151.0,0.00017808,2]
[323370372,1713935445359,-151.0,0.00017808,2]
[323370373,1713935445368,-500.0,0.00017808,2]
[323370374,1713935445377,-1624.86,0.00017808,2]
[323370375,1713935445386,-8519.54,0.00017808,2]
[323370376,1713935445395,-500.0,0.00017808,2]
[323370377,1713935445404,-810.89,0.00017808,2]
[323370378,1713935445413,-1248.8,0.00017808,2]
[323370379,1713935445422,-1015.49,0.00017808,2]
[323370380,1713935445430,-1101.25,0.00017808,2]
[323370381,1713935445439,-759.56,0.00017808,2]
[323370382,1713935445448,-500.0,0.00017808,2]
[323370383,1713935445457,-500.0,0.00017808,2]
[323370384,1713935445469,-504.99981315,0.00017808,2]
[323370385,1713935445477,-6087.38,0.00017808,2]
[323370386,1713935445486,-500.0,0.00017808,2]
[323370387,1713935445495,-866.2,0.00017808,2]
[323370388,1713935445504,-1123.53,0.00017808,2]
[323370389,1713935445513,-6024.2,0.00017808,2]